[Event "Early-Titled-Tuesday-Blitz-March-05-2024"]
[Site "Chess.com"]
[Date "2024.03.05"]
[Round "5"]
[White "amylazy"]
[Black "Orest_Vovk"]
[Result "1-0"]
[WhiteElo "2414"]
[BlackElo "2549"]
[TimeControl "180+1"]
[EndTime "8:58:04 PST"]
[Termination "amylazy won on time"]

1. d4 {[%clk 0:02:59.3]} 1... h6 {[%clk 0:02:48.1]} 2. Nf3 {[%clk 0:02:55.9]}
2... g5 {[%clk 0:02:48]} 3. Nc3 {[%clk 0:02:45.5]} 3... Bg7 {[%clk 0:02:45.7]}
4. e4 {[%clk 0:02:41.6]} 4... c5 {[%clk 0:02:45.7]} 5. Be3 {[%clk 0:02:38]} 5...
Nc6 {[%clk 0:02:19]} 6. d5 {[%clk 0:02:35.5]} 6... g4 {[%clk 0:02:14.9]} 7. Nh4
{[%clk 0:02:25]} 7... Nd4 {[%clk 0:02:09.6]} 8. Bxd4 {[%clk 0:02:21.5]} 8...
cxd4 {[%clk 0:02:01.1]} 9. Qxg4 {[%clk 0:02:12.8]} 9... Be5 {[%clk 0:01:50.9]}
10. Ne2 {[%clk 0:01:45.1]} 10... Qa5+ {[%clk 0:01:47.4]} 11. Kd1 {[%clk
0:01:44.6]} 11... d6 {[%clk 0:01:39.4]} 12. Nf5 {[%clk 0:01:43.9]} 12... Nf6
{[%clk 0:01:38.8]} 13. Qf3 {[%clk 0:01:32.8]} 13... d3 {[%clk 0:01:26]} 14. Qxd3
{[%clk 0:01:23]} 14... Bxb2 {[%clk 0:01:14.6]} 15. Rb1 {[%clk 0:01:22.1]} 15...
Be5 {[%clk 0:01:00.4]} 16. Ned4 {[%clk 0:01:03.1]} 16... Qxa2 {[%clk 0:00:49.3]}
17. Qb5+ {[%clk 0:00:52.4]} 17... Bd7 {[%clk 0:00:40.1]} 18. Qxb7 {[%clk
0:00:52.4]} 18... O-O {[%clk 0:00:39.7]} 19. Bd3 {[%clk 0:00:34.6]} 19... Rfb8
{[%clk 0:00:22.2]} 20. Qxb8+ {[%clk 0:00:33.1]} 20... Rxb8 {[%clk 0:00:23.1]}
21. Rxb8+ {[%clk 0:00:33]} 21... Kh7 {[%clk 0:00:24]} 22. Ke2 {[%clk 0:00:27.2]}
22... Qa4 {[%clk 0:00:21.4]} 23. c3 {[%clk 0:00:15.1]} 23... Bxf5 {[%clk
0:00:14.5]} 24. Nxf5 {[%clk 0:00:16]} 24... Nxe4 {[%clk 0:00:13.4]} 25. Ng3
{[%clk 0:00:15.3]} 25... f5 {[%clk 0:00:11.3]} 26. Nxf5 {[%clk 0:00:13.5]} 26...
Nxc3+ {[%clk 0:00:10.4]} 27. Kd2 {[%clk 0:00:12.2]} 27... Qf4+ {[%clk
0:00:07.5]} 28. Ne3+ {[%clk 0:00:11.8]} 28... Kg7 {[%clk 0:00:07.8]} 29. f3
{[%clk 0:00:10.7]} 29... Qd4 {[%clk 0:00:05.7]} 30. Nf5+ {[%clk 0:00:09]} 30...
Kf6 {[%clk 0:00:05.6]} 31. Nxd4 {[%clk 0:00:09.9]} 1-0

[Event "Early-Titled-Tuesday-Blitz-March-05-2024"]
[Site "Chess.com"]
[Date "2024.03.05"]
[Round "5"]
[White "iJueles"]
[Black "arnash_bauyrzhan"]
[Result "1-0"]
[WhiteElo "2482"]
[BlackElo "2320"]
[TimeControl "180+1"]
[EndTime "8:58:06 PST"]
[Termination "iJueles won on time"]

1. d4 {[%clk 0:03:00.9]} 1... d5 {[%clk 0:02:58.9]} 2. Nf3 {[%clk 0:03:00.9]}
2... Nf6 {[%clk 0:02:57.7]} 3. Bg5 {[%clk 0:03:00.8]} 3... e6 {[%clk 0:02:57.3]}
4. Nbd2 {[%clk 0:03:00.6]} 4... Be7 {[%clk 0:02:55.6]} 5. e3 {[%clk 0:03:00.9]}
5... O-O {[%clk 0:02:55.4]} 6. c3 {[%clk 0:03:01.4]} 6... h6 {[%clk 0:02:53.8]}
7. Bh4 {[%clk 0:03:00.5]} 7... b6 {[%clk 0:02:51.8]} 8. Bd3 {[%clk 0:03:00.7]}
8... Bb7 {[%clk 0:02:52]} 9. O-O {[%clk 0:03:01.2]} 9... c5 {[%clk 0:02:51.3]}
10. Ne5 {[%clk 0:03:01.6]} 10... Nbd7 {[%clk 0:02:50.9]} 11. f4 {[%clk
0:03:00.3]} 11... Ne4 {[%clk 0:02:46]} 12. Bxe7 {[%clk 0:02:59.2]} 12... Qxe7
{[%clk 0:02:46]} 13. Qc2 {[%clk 0:02:49.6]} 13... Nxe5 {[%clk 0:02:36.7]} 14.
fxe5 {[%clk 0:02:44.2]} 14... f5 {[%clk 0:00:27.3]} 15. exf6 {[%clk 0:02:42.9]}
15... Nxf6 {[%clk 0:00:26.8]} 16. Nf3 {[%clk 0:02:43.3]} 16... Ne4 {[%clk
0:00:25.8]} 17. Bxe4 {[%clk 0:02:39.9]} 17... dxe4 {[%clk 0:00:25.9]} 18. Ne5
{[%clk 0:02:40.5]} 18... Qg5 {[%clk 0:00:24.3]} 19. Qe2 {[%clk 0:02:36.8]} 19...
cxd4 {[%clk 0:00:23.6]} 20. exd4 {[%clk 0:02:32.5]} 20... Rf5 {[%clk 0:00:19.1]}
21. Rxf5 {[%clk 0:02:26.1]} 21... exf5 {[%clk 0:00:18.9]} 22. Rf1 {[%clk
0:02:15.5]} 22... Rf8 {[%clk 0:00:18.2]} 23. c4 {[%clk 0:01:45.3]} 23... e3
{[%clk 0:00:18.5]} 24. d5 {[%clk 0:01:43.4]} 24... f4 {[%clk 0:00:18.9]} 25. Nd3
{[%clk 0:01:40.7]} 25... Bc8 {[%clk 0:00:15.8]} 26. Qf3 {[%clk 0:01:17.4]} 26...
Bg4 {[%clk 0:00:15.6]} 27. Qe4 {[%clk 0:01:17.8]} 27... f3 {[%clk 0:00:09.5]}
28. g3 {[%clk 0:01:16]} 28... f2+ {[%clk 0:00:08.8]} 29. Nxf2 {[%clk 0:01:11.1]}
29... exf2+ {[%clk 0:00:08.8]} 30. Rxf2 {[%clk 0:01:11.8]} 30... Rxf2 {[%clk
0:00:04.2]} 31. Kxf2 {[%clk 0:01:12.2]} 31... Qf5+ {[%clk 0:00:02.9]} 32. Qxf5
{[%clk 0:01:11.9]} 32... Bxf5 {[%clk 0:00:03.8]} 33. Ke3 {[%clk 0:01:10.1]}
33... Kf7 {[%clk 0:00:04.3]} 34. Kf4 {[%clk 0:01:08.7]} 34... Bd7 {[%clk
0:00:03.5]} 35. Ke5 {[%clk 0:01:08.1]} 35... Ke7 {[%clk 0:00:04.2]} 36. b4
{[%clk 0:01:06.8]} 36... Bg4 {[%clk 0:00:04.2]} 37. c5 {[%clk 0:01:05.3]} 37...
bxc5 {[%clk 0:00:04.7]} 38. bxc5 {[%clk 0:01:06.2]} 38... Kd7 {[%clk 0:00:04.9]}
39. h4 {[%clk 0:01:03.1]} 39... Kc7 {[%clk 0:00:04.3]} 40. a3 {[%clk 0:01:02.5]}
40... g5 {[%clk 0:00:03.3]} 41. hxg5 {[%clk 0:00:59.1]} 41... hxg5 {[%clk
0:00:04]} 42. Kf6 {[%clk 0:00:59.5]} 42... Bf3 {[%clk 0:00:04.5]} 43. Ke5 {[%clk
0:00:58.1]} 43... g4 {[%clk 0:00:04.3]} 44. Ke6 {[%clk 0:00:57.6]} 44... Bd1
{[%clk 0:00:03.4]} 45. d6+ {[%clk 0:00:51.1]} 45... Kc6 {[%clk 0:00:03.8]} 46.
Ke7 {[%clk 0:00:49.7]} 46... Bb3 {[%clk 0:00:03.4]} 47. d7 {[%clk 0:00:49.8]}
1-0

[Event "Early-Titled-Tuesday-Blitz-March-05-2024"]
[Site "Chess.com"]
[Date "2024.03.05"]
[Round "5"]
[White "RantomOpening"]
[Black "KorolDimitriy75"]
[Result "1-0"]
[WhiteElo "2582"]
[BlackElo "2437"]
[TimeControl "180+1"]
[EndTime "8:58:07 PST"]
[Termination "RantomOpening won on time"]

1. c4 {[%clk 0:03:00]} 1... c5 {[%clk 0:03:00.2]} 2. Nf3 {[%clk 0:03:00]} 2...
g6 {[%clk 0:03:00.6]} 3. e3 {[%clk 0:02:59.7]} 3... Bg7 {[%clk 0:03:00.3]} 4.
Nc3 {[%clk 0:02:59.9]} 4... Nf6 {[%clk 0:03:00.5]} 5. d3 {[%clk 0:02:59.9]} 5...
O-O {[%clk 0:03:00.3]} 6. Be2 {[%clk 0:03:00]} 6... Nc6 {[%clk 0:03:00.8]} 7.
O-O {[%clk 0:03:00.2]} 7... d5 {[%clk 0:03:01.2]} 8. cxd5 {[%clk 0:03:00.3]}
8... Nxd5 {[%clk 0:03:02.1]} 9. Qc2 {[%clk 0:03:00.3]} 9... b6 {[%clk
0:02:59.9]} 10. a3 {[%clk 0:02:59.9]} 10... Bb7 {[%clk 0:02:59.7]} 11. e4 {[%clk
0:02:58.7]} 11... Nc7 {[%clk 0:02:49.6]} 12. Bf4 {[%clk 0:02:48.2]} 12... Ne6
{[%clk 0:02:47.8]} 13. Bg3 {[%clk 0:02:44.7]} 13... Ned4 {[%clk 0:02:46.8]} 14.
Qd1 {[%clk 0:02:10.8]} 14... Nxf3+ {[%clk 0:02:36.7]} 15. Bxf3 {[%clk
0:02:09.9]} 15... Nd4 {[%clk 0:02:37]} 16. Bf4 {[%clk 0:01:31.8]} 16... Qd7
{[%clk 0:02:26.7]} 17. Be3 {[%clk 0:01:25.3]} 17... Rfd8 {[%clk 0:01:49.3]} 18.
Bg4 {[%clk 0:00:57.7]} 18... e6 {[%clk 0:01:47.1]} 19. f4 {[%clk 0:00:47.8]}
19... f5 {[%clk 0:01:36.8]} 20. Bh3 {[%clk 0:00:47.9]} 20... Nb5 {[%clk
0:00:58.4]} 21. Qb3 {[%clk 0:00:42]} 21... Nxc3 {[%clk 0:00:46.3]} 22. bxc3
{[%clk 0:00:42.9]} 22... Qxd3 {[%clk 0:00:41.9]} 23. Qxe6+ {[%clk 0:00:42.4]}
23... Kh8 {[%clk 0:00:41.5]} 24. exf5 {[%clk 0:00:42]} 24... Re8 {[%clk
0:00:39.7]} 25. Bf2 {[%clk 0:00:32]} 25... Rxe6 {[%clk 0:00:24.5]} 26. fxe6
{[%clk 0:00:32.9]} 26... Bxc3 {[%clk 0:00:18.6]} 27. Rad1 {[%clk 0:00:31.7]}
27... Qb5 {[%clk 0:00:06.3]} 28. Bh4 {[%clk 0:00:20.6]} 28... Re8 {[%clk
0:00:05.2]} 29. e7 {[%clk 0:00:20.9]} 29... Qc6 {[%clk 0:00:03.7]} 30. Rd8
{[%clk 0:00:19.5]} 30... Bd4+ {[%clk 0:00:02.7]} 31. Kh1 {[%clk 0:00:18.6]}
31... Kg7 {[%clk 0:00:02.3]} 32. Rxe8 {[%clk 0:00:11.1]} 32... Qxe8 {[%clk
0:00:01.8]} 33. f5 {[%clk 0:00:12]} 1-0

[Event "Early-Titled-Tuesday-Blitz-March-05-2024"]
[Site "Chess.com"]
[Date "2024.03.05"]
[Round "5"]
[White "Azalea95"]
[Black "JohnWhite1952"]
[Result "1-0"]
[WhiteElo "2343"]
[BlackElo "1992"]
[TimeControl "180+1"]
[EndTime "8:58:08 PST"]
[Termination "Azalea95 won by checkmate"]

1. e4 {[%clk 0:03:00.9]} 1... c5 {[%clk 0:02:58.4]} 2. Nc3 {[%clk 0:03:00.1]}
2... Nc6 {[%clk 0:02:56.8]} 3. g3 {[%clk 0:03:00.6]} 3... g6 {[%clk 0:02:56.4]}
4. Bg2 {[%clk 0:03:01.2]} 4... Bg7 {[%clk 0:02:55.6]} 5. d3 {[%clk 0:03:01.8]}
5... d6 {[%clk 0:02:55.3]} 6. Be3 {[%clk 0:03:01.8]} 6... e6 {[%clk 0:02:52.7]}
7. Qd2 {[%clk 0:03:01.6]} 7... Nge7 {[%clk 0:02:51.3]} 8. Nge2 {[%clk
0:03:00.6]} 8... O-O {[%clk 0:02:49.5]} 9. O-O {[%clk 0:02:59.6]} 9... a6 {[%clk
0:02:48.8]} 10. Bh6 {[%clk 0:02:59.3]} 10... Bd7 {[%clk 0:02:44.7]} 11. Bxg7
{[%clk 0:02:59.1]} 11... Kxg7 {[%clk 0:02:44.4]} 12. f4 {[%clk 0:02:59.9]} 12...
Nd4 {[%clk 0:02:35]} 13. Nd1 {[%clk 0:02:55.7]} 13... b5 {[%clk 0:02:27.1]} 14.
Nc1 {[%clk 0:02:53.1]} 14... Rb8 {[%clk 0:02:22.4]} 15. c3 {[%clk 0:02:53]}
15... Ndc6 {[%clk 0:02:21.2]} 16. Ne3 {[%clk 0:02:53.2]} 16... f5 {[%clk
0:02:11.3]} 17. Ne2 {[%clk 0:02:52.6]} 17... e5 {[%clk 0:02:00]} 18. d4 {[%clk
0:02:44.3]} 18... Qb6 {[%clk 0:01:44.9]} 19. dxe5 {[%clk 0:02:38.7]} 19... fxe4
{[%clk 0:01:34.5]} 20. exd6 {[%clk 0:02:03]} 20... Nf5 {[%clk 0:01:28.5]} 21.
Nd5 {[%clk 0:01:54.1]} 21... Qa7 {[%clk 0:01:16.5]} 22. Bxe4 {[%clk 0:01:52.5]}
22... c4+ {[%clk 0:01:04.3]} 23. Kh1 {[%clk 0:01:49.4]} 23... Nxd6 {[%clk
0:00:57.6]} 24. Bf3 {[%clk 0:01:49.3]} 24... Nf5 {[%clk 0:00:53.3]} 25. Rad1
{[%clk 0:01:47]} 25... Be6 {[%clk 0:00:48.5]} 26. Rfe1 {[%clk 0:01:17.2]} 26...
Rbd8 {[%clk 0:00:38.5]} 27. Ng1 {[%clk 0:01:12.2]} 27... Rfe8 {[%clk 0:00:22.1]}
28. Qc1 {[%clk 0:00:43.2]} 28... Bxd5 {[%clk 0:00:18.2]} 29. Rxd5 {[%clk
0:00:37]} 29... Rxe1 {[%clk 0:00:16]} 30. Qxe1 {[%clk 0:00:37.9]} 30... Rxd5
{[%clk 0:00:09.6]} 31. Bxd5 {[%clk 0:00:38.8]} 31... Nce7 {[%clk 0:00:09.7]} 32.
Qe5+ {[%clk 0:00:37.3]} 32... Kh6 {[%clk 0:00:07.3]} 33. Bf3 {[%clk 0:00:30.5]}
33... Qf2 {[%clk 0:00:06.4]} 34. g4 {[%clk 0:00:25.4]} 34... Nh4 {[%clk
0:00:02.7]} 35. g5# {[%clk 0:00:24.4]} 1-0

[Event "Early-Titled-Tuesday-Blitz-March-05-2024"]
[Site "Chess.com"]
[Date "2024.03.05"]
[Round "5"]
[White "Elprofessor21"]
[Black "kleinebeer98"]
[Result "0-1"]
[WhiteElo "2665"]
[BlackElo "2896"]
[TimeControl "180+1"]
[EndTime "8:58:11 PST"]
[Termination "kleinebeer98 won by resignation"]

1. d4 {[%clk 0:02:52]} 1... Nf6 {[%clk 0:02:59.3]} 2. Nf3 {[%clk 0:02:52]} 2...
Nc6 {[%clk 0:02:59]} 3. Bf4 {[%clk 0:02:41.9]} 3... d6 {[%clk 0:02:56.7]} 4. c3
{[%clk 0:02:38]} 4... Bg4 {[%clk 0:02:55.1]} 5. Nbd2 {[%clk 0:02:34.9]} 5... g6
{[%clk 0:02:51.1]} 6. h3 {[%clk 0:02:32.8]} 6... Bxf3 {[%clk 0:02:45.4]} 7. Nxf3
{[%clk 0:02:28.6]} 7... Bg7 {[%clk 0:02:43.6]} 8. e4 {[%clk 0:02:06.7]} 8... O-O
{[%clk 0:02:29.3]} 9. Qc2 {[%clk 0:02:06.6]} 9... e5 {[%clk 0:02:24.6]} 10. dxe5
{[%clk 0:02:03.8]} 10... dxe5 {[%clk 0:02:24.4]} 11. Bg5 {[%clk 0:01:55.8]}
11... Qd6 {[%clk 0:02:18.6]} 12. Rd1 {[%clk 0:01:39.3]} 12... Qc5 {[%clk
0:02:12.6]} 13. Be2 {[%clk 0:01:34.4]} 13... Nh5 {[%clk 0:02:08.1]} 14. Be3
{[%clk 0:01:25.2]} 14... Qe7 {[%clk 0:02:05]} 15. b4 {[%clk 0:01:12.8]} 15...
Nf4 {[%clk 0:02:02]} 16. O-O {[%clk 0:01:04.9]} 16... Rfd8 {[%clk 0:02:00.2]}
17. Bc4 {[%clk 0:00:55.9]} 17... Qf6 {[%clk 0:01:55.5]} 18. Kh2 {[%clk
0:00:52.9]} 18... a6 {[%clk 0:01:52.6]} 19. a4 {[%clk 0:00:51.1]} 19... h5
{[%clk 0:01:47.2]} 20. Rxd8+ {[%clk 0:00:44.1]} 20... Rxd8 {[%clk 0:01:46.8]}
21. Rd1 {[%clk 0:00:44.5]} 21... Rxd1 {[%clk 0:01:41.2]} 22. Qxd1 {[%clk
0:00:43.5]} 22... g5 {[%clk 0:01:15.4]} 23. Qd7 {[%clk 0:00:37.8]} 23... Ne7
{[%clk 0:01:14.9]} 24. Bc5 {[%clk 0:00:22.4]} 24... Neg6 {[%clk 0:01:11.7]} 25.
Qe8+ {[%clk 0:00:22.5]} 25... Bf8 {[%clk 0:01:09.9]} 26. Bxf8 {[%clk 0:00:20.7]}
26... Nxf8 {[%clk 0:01:10.8]} 27. Nxe5 {[%clk 0:00:20.2]} 27... Ne6 {[%clk
0:01:07.9]} 28. Nd7 {[%clk 0:00:11.1]} 28... Qf4+ {[%clk 0:01:01.6]} 29. Kg1
{[%clk 0:00:11.3]} 29... Qc1+ {[%clk 0:01:00.5]} 30. Kh2 {[%clk 0:00:09.9]}
30... Qf4+ {[%clk 0:00:56.7]} 31. Kg1 {[%clk 0:00:10.2]} 31... Kg7 {[%clk
0:00:51.5]} 32. Nxf8 {[%clk 0:00:08.7]} 32... Nxf8 {[%clk 0:00:52.4]} 33. Bf1
{[%clk 0:00:08.2]} 33... Ne6 {[%clk 0:00:49.3]} 34. Qc8 {[%clk 0:00:04.1]} 34...
g4 {[%clk 0:00:49.3]} 35. hxg4 {[%clk 0:00:02.8]} 35... hxg4 {[%clk 0:00:50.2]}
36. Qxb7 {[%clk 0:00:03.1]} 36... g3 {[%clk 0:00:50.3]} 37. Qa7 {[%clk
0:00:03.6]} 37... Qd2 {[%clk 0:00:45]} 38. Qe3 {[%clk 0:00:03.7]} 38... gxf2+
{[%clk 0:00:45.6]} 39. Qxf2 {[%clk 0:00:03.5]} 39... Qxc3 {[%clk 0:00:46.3]} 40.
b5 {[%clk 0:00:03.8]} 40... a5 {[%clk 0:00:43.1]} 41. Qe2 {[%clk 0:00:02.4]}
41... Qd4+ {[%clk 0:00:43.1]} 42. Kh2 {[%clk 0:00:02.3]} 42... Qxa4 {[%clk
0:00:44]} 43. Qg4+ {[%clk 0:00:01.8]} 43... Kf8 {[%clk 0:00:44.6]} 44. Qh4
{[%clk 0:00:01.7]} 44... Qa1 {[%clk 0:00:44.4]} 45. Qh6+ {[%clk 0:00:01.9]}
45... Ke7 {[%clk 0:00:44.1]} 46. Qh4+ {[%clk 0:00:02.1]} 46... Kd7 {[%clk
0:00:44.8]} 47. Qf2 {[%clk 0:00:02.1]} 47... Qe5+ {[%clk 0:00:41.9]} 48. g3
{[%clk 0:00:01.8]} 48... a4 {[%clk 0:00:41.7]} 49. Qd2+ {[%clk 0:00:01.9]} 49...
Nd4 {[%clk 0:00:42.4]} 50. Qb2 {[%clk 0:00:02.2]} 50... Nf3+ {[%clk 0:00:42]}
0-1

[Event "Early-Titled-Tuesday-Blitz-March-05-2024"]
[Site "Chess.com"]
[Date "2024.03.05"]
[Round "5"]
[White "bancsoo"]
[Black "LangesNasenhaar"]
[Result "1-0"]
[WhiteElo "2915"]
[BlackElo "2523"]
[TimeControl "180+1"]
[EndTime "8:58:12 PST"]
[Termination "bancsoo won by resignation"]

1. Nf3 {[%clk 0:03:00.9]} 1... g6 {[%clk 0:02:59.6]} 2. d4 {[%clk 0:03:00.1]}
2... Bg7 {[%clk 0:03:00.1]} 3. c4 {[%clk 0:03:00.9]} 3... d6 {[%clk 0:02:59.1]}
4. g3 {[%clk 0:03:01.2]} 4... c6 {[%clk 0:02:56.1]} 5. Bg2 {[%clk 0:03:01.6]}
5... Nf6 {[%clk 0:02:56.8]} 6. Nc3 {[%clk 0:03:00.6]} 6... Bf5 {[%clk 0:02:57]}
7. Ng5 {[%clk 0:02:45.4]} 7... O-O {[%clk 0:02:44.6]} 8. O-O {[%clk 0:02:44.3]}
8... h6 {[%clk 0:02:37.1]} 9. e4 {[%clk 0:02:44.2]} 9... Bg4 {[%clk 0:02:35]}
10. f3 {[%clk 0:02:44.6]} 10... Bd7 {[%clk 0:02:27.6]} 11. Nh3 {[%clk
0:02:44.6]} 11... e5 {[%clk 0:02:27.6]} 12. d5 {[%clk 0:02:44.3]} 12... cxd5
{[%clk 0:02:17.6]} 13. cxd5 {[%clk 0:02:45.2]} 13... Na6 {[%clk 0:02:16.5]} 14.
Be3 {[%clk 0:02:43.8]} 14... b6 {[%clk 0:02:13.7]} 15. Nf2 {[%clk 0:02:43.4]}
15... Rc8 {[%clk 0:02:08.7]} 16. Rc1 {[%clk 0:02:40.8]} 16... Nc5 {[%clk
0:01:59]} 17. b4 {[%clk 0:02:39.7]} 17... Nb7 {[%clk 0:01:53.3]} 18. Qd2 {[%clk
0:02:37.7]} 18... Kh7 {[%clk 0:01:52.1]} 19. Nd3 {[%clk 0:02:30.7]} 19... a5
{[%clk 0:01:41.9]} 20. a3 {[%clk 0:02:27.6]} 20... Nh5 {[%clk 0:01:36.8]} 21.
Qf2 {[%clk 0:02:15.5]} 21... b5 {[%clk 0:01:33.1]} 22. Bb6 {[%clk 0:02:12.9]}
22... Qg5 {[%clk 0:01:32.5]} 23. bxa5 {[%clk 0:02:11.3]} 23... Ra8 {[%clk
0:01:20.1]} 24. Bc7 {[%clk 0:01:22.7]} 24... Nxa5 {[%clk 0:01:20]} 25. Bxd6
{[%clk 0:01:21.9]} 25... Rfe8 {[%clk 0:01:20.7]} 26. Bb4 {[%clk 0:01:11.3]}
26... Nc4 {[%clk 0:01:20.3]} 27. Nc5 {[%clk 0:01:12]} 27... Red8 {[%clk
0:01:02.6]} 28. Nxd7 {[%clk 0:01:12]} 28... Rxd7 {[%clk 0:01:02.3]} 29. Nxb5
{[%clk 0:01:11.4]} 29... Rb7 {[%clk 0:00:47.2]} 30. Rxc4 {[%clk 0:01:08.8]}
30... Rxb5 {[%clk 0:00:46.7]} 31. Rc7 {[%clk 0:01:06.4]} 31... Kg8 {[%clk
0:00:42.9]} 32. d6 {[%clk 0:01:04.5]} 32... Nf6 {[%clk 0:00:36.6]} 33. Rd1
{[%clk 0:01:03.6]} 33... Rd8 {[%clk 0:00:33.7]} 34. Qa2 {[%clk 0:01:00.7]} 34...
Rd7 {[%clk 0:00:24.6]} 35. Rxd7 {[%clk 0:00:57.1]} 35... Nxd7 {[%clk 0:00:25.5]}
36. Qc4 {[%clk 0:00:51.5]} 36... Qe3+ {[%clk 0:00:23.4]} 37. Kh1 {[%clk
0:00:51.9]} 37... Rb8 {[%clk 0:00:13.7]} 38. Qc7 {[%clk 0:00:45.4]} 38... Qe2
{[%clk 0:00:14]} 39. Re1 {[%clk 0:00:39]} 39... Qb5 {[%clk 0:00:14.6]} 40. Bf1
{[%clk 0:00:33.7]} 40... Qb7 {[%clk 0:00:08.9]} 41. Qxb7 {[%clk 0:00:33.1]}
41... Rxb7 {[%clk 0:00:09.8]} 42. Rc1 {[%clk 0:00:31.5]} 42... Bf8 {[%clk
0:00:09.4]} 43. Rc7 {[%clk 0:00:30.4]} 43... Rxc7 {[%clk 0:00:08.2]} 44. dxc7
{[%clk 0:00:30.8]} 44... Nb6 {[%clk 0:00:09.1]} 45. Ba6 {[%clk 0:00:27.8]} 45...
Bxb4 {[%clk 0:00:07.6]} 46. axb4 {[%clk 0:00:28]} 1-0

[Event "Early-Titled-Tuesday-Blitz-March-05-2024"]
[Site "Chess.com"]
[Date "2024.03.05"]
[Round "5"]
[White "AccioChess"]
[Black "FischerKasparow"]
[Result "1-0"]
[WhiteElo "2352"]
[BlackElo "2076"]
[TimeControl "180+1"]
[EndTime "8:58:12 PST"]
[Termination "AccioChess won on time"]

1. e4 {[%clk 0:03:00.9]} 1... c5 {[%clk 0:02:58.6]} 2. Nf3 {[%clk 0:03:00.1]}
2... d6 {[%clk 0:02:58.9]} 3. c3 {[%clk 0:03:00.3]} 3... Nf6 {[%clk 0:02:58.7]}
4. Be2 {[%clk 0:03:00.1]} 4... Nbd7 {[%clk 0:02:58.1]} 5. d3 {[%clk 0:02:56.7]}
5... g6 {[%clk 0:02:57.7]} 6. O-O {[%clk 0:02:55.3]} 6... Bg7 {[%clk 0:02:58.1]}
7. Nbd2 {[%clk 0:02:54.2]} 7... O-O {[%clk 0:02:58.4]} 8. d4 {[%clk 0:02:51.2]}
8... b6 {[%clk 0:02:52]} 9. Re1 {[%clk 0:02:50.3]} 9... Bb7 {[%clk 0:02:50.9]}
10. Bd3 {[%clk 0:02:46.6]} 10... e6 {[%clk 0:02:48.2]} 11. e5 {[%clk 0:02:39.2]}
11... dxe5 {[%clk 0:02:45.3]} 12. dxe5 {[%clk 0:02:38.3]} 12... Nd5 {[%clk
0:02:40.9]} 13. Nc4 {[%clk 0:02:37.2]} 13... Qc7 {[%clk 0:02:30.4]} 14. Qe2
{[%clk 0:02:30.5]} 14... b5 {[%clk 0:02:15.3]} 15. Nd6 {[%clk 0:02:29.1]} 15...
c4 {[%clk 0:02:15.2]} 16. Bc2 {[%clk 0:02:22.2]} 16... Nxe5 {[%clk 0:02:00.6]}
17. Nxb7 {[%clk 0:02:20.6]} 17... Nxf3+ {[%clk 0:01:58.8]} 18. Qxf3 {[%clk
0:02:21.5]} 18... Qxb7 {[%clk 0:01:58.7]} 19. h4 {[%clk 0:02:21.5]} 19... h5
{[%clk 0:01:53.8]} 20. Bg5 {[%clk 0:02:12.5]} 20... a5 {[%clk 0:01:27.4]} 21.
Be4 {[%clk 0:02:09.4]} 21... Rfe8 {[%clk 0:01:23.2]} 22. Red1 {[%clk 0:02:02.5]}
22... b4 {[%clk 0:01:15.7]} 23. Bxd5 {[%clk 0:01:13.4]} 23... exd5 {[%clk
0:01:13]} 24. Rxd5 {[%clk 0:01:14.3]} 24... bxc3 {[%clk 0:01:04.6]} 25. bxc3
{[%clk 0:01:15.2]} 25... Qb2 {[%clk 0:00:56]} 26. Rad1 {[%clk 0:01:14.1]} 26...
Qxc3 {[%clk 0:00:54.6]} 27. Qf4 {[%clk 0:00:56.8]} 27... Re1+ {[%clk 0:00:48.4]}
28. Rxe1 {[%clk 0:00:52.9]} 28... Qxe1+ {[%clk 0:00:48.2]} 29. Kh2 {[%clk
0:00:52.8]} 29... c3 {[%clk 0:00:47.5]} 30. Rc5 {[%clk 0:00:43.1]} 30... Re8
{[%clk 0:00:37.2]} 31. Bf6 {[%clk 0:00:42.3]} 31... Bxf6 {[%clk 0:00:27.7]} 32.
Qxf6 {[%clk 0:00:43.2]} 32... Qd2 {[%clk 0:00:15.8]} 33. Rxc3 {[%clk 0:00:35.1]}
33... Qxa2 {[%clk 0:00:15.2]} 34. Rc7 {[%clk 0:00:34.7]} 34... Rf8 {[%clk
0:00:13.6]} 35. Ra7 {[%clk 0:00:34.5]} 35... a4 {[%clk 0:00:13.4]} 36. Qd4
{[%clk 0:00:33.2]} 36... a3 {[%clk 0:00:12.9]} 37. Qc5 {[%clk 0:00:30.9]} 37...
Qe6 {[%clk 0:00:05.8]} 38. Rxa3 {[%clk 0:00:30.5]} 38... Qg4 {[%clk 0:00:05.4]}
39. g3 {[%clk 0:00:29.2]} 39... Qe2 {[%clk 0:00:04.2]} 40. Ra7 {[%clk
0:00:28.7]} 40... Qf1 {[%clk 0:00:02.9]} 41. Qe3 {[%clk 0:00:28.5]} 41... Qd1
{[%clk 0:00:02]} 42. Qf4 {[%clk 0:00:28.5]} 42... Qe1 {[%clk 0:00:01.7]} 43. Qf6
{[%clk 0:00:28.4]} 43... Qe2 {[%clk 0:00:01.3]} 44. Kg2 {[%clk 0:00:28.5]} 1-0